fUSD/lending_fUSD_20251019
["ID","MTS","AMOUNT","RATE_DAILY","PERIOD"]
[391827589,1760893662463,-152.385921,0.00034087,30]
[391827590,1760893662491,-731.138629,0.00034088,30]
[391827591,1760893662521,-731.138629,0.00034088,30]
[391827592,1760893662547,-731.138629,0.00034088,30]
[391827593,1760893662574,-731.138629,0.00034088,30]
[391827594,1760893662601,-151.0,0.00034088,30]
[391827595,1760893662628,-151.0,0.00034098,30]
[391827596,1760893662654,-151.0,0.00034098,30]
[391827597,1760893662682,-151.0,0.00034099,30]
[391827598,1760893662709,-731.138629,0.00034111,30]
[391827599,1760893662735,-731.138629,0.00034111,30]
[391827600,1760893662762,-731.138629,0.00034111,30]
[391827601,1760893662788,-731.138629,0.00034111,30]
[391827602,1760893662815,-151.0,0.00034127,30]
[391827603,1760893662841,-151.0,0.00034127,30]
[391827604,1760893662869,-151.0,0.00034151,30]
[391827605,1760893662894,-151.0,0.00034151,30]
[391827606,1760893662920,-731.138629,0.00034151,30]
[391827607,1760893662947,-731.138629,0.00034151,30]
[391827608,1760893662980,-731.138629,0.00034151,30]
[391827609,1760893663008,-731.138629,0.00034151,30]
[391827610,1760893663035,-731.138629,0.00034154,30]
[391827611,1760893663205,-731.138629,0.00034154,30]
[391827612,1760893663235,-731.138629,0.00034154,30]
[391827613,1760893663263,-731.138632,0.00034154,30]
[391827614,1760893663290,-151.0,0.00034155,30]
[391827615,1760893663316,-186.754704,0.00034155,30]
[391827616,1760893663344,-38392.4255836,0.00034161,33]
[391827617,1760893663373,-11244.20754057,0.00034162,30]
[391827618,1760893663398,-816.25,0.00034162,30]
[391827619,1760893663425,-143289.0,0.00034164,30]
[391827620,1760893663461,-3765631.56712502,0.00034187,30]
[391827621,1760893667130,-151.0,0.0003406,30]
[391827622,1760893667160,-151.0,0.0003406,30]
[391827623,1760893667188,-151.0,0.0003406,30]
[391827624,1760893667217,-151.0,0.0003406,30]
[391827625,1760893667245,-151.0,0.00034063,30]
[391827626,1760893667276,-151.0,0.00034063,30]
[391827627,1760893667305,-151.0,0.00034063,30]
[391827628,1760893667332,-151.0,0.00034063,30]
[391827629,1760893667362,-151.0,0.00034079,30]
[391827630,1760893667389,-151.0,0.00034079,30]
[391827631,1760893667417,-151.0,0.00034079,30]
[391827632,1760893667445,-151.0,0.00034079,30]
[391827633,1760893667474,-151.0,0.00034091,30]
[391827634,1760893667503,-151.0,0.00034091,30]
[391827635,1760893667534,-151.0,0.00034091,30]
[391827636,1760893667562,-151.0,0.00034101,30]
[391827637,1760893667590,-151.0,0.00034101,30]
[391827638,1760893667616,-151.0,0.00034101,30]
[391827639,1760893667658,-83307.72156046,0.00034187,30]
[391827640,1760893667686,-3848939.28868548,0.00034187,30]
[391827641,1760893667714,-151.0,0.00034271,30]
[391827642,1760893667743,-1000.0,0.00035,120]
[391827643,1760893667779,-237.0,0.00035035,120]
[391827644,1760893667807,-151.0,0.00035171,30]
[391827645,1760893667834,-155.0,0.000352,120]
[391827646,1760893667865,-179.0,0.00035861,120]
[391827647,1760893667892,-1680.22689339,0.00036588,30]
[391827648,1760893667920,-656.32,0.00036986,120]
[391827649,1760893667946,-815.8947208,0.00037,120]
[391827650,1760893667977,-157.0,0.000371,120]
[391827651,1760893668005,-709.93,0.00037808,60]
[391827652,1760893668035,-709.93,0.00037839,80]
[391827653,1760893668063,-709.94,0.00037869,100]
[391827654,1760893668090,-709.93,0.000379,120]
[391827655,1760893668120,-1065.66177842,0.0003836,120]
[391827656,1760893668148,-1065.66177842,0.0003836,120]
[391827657,1760893668174,-1065.66177842,0.0003836,120]
[391827658,1760893668200,-1065.66177842,0.0003836,120]
[391827659,1760893668227,-1065.66177842,0.0003836,120]
[391827660,1760893668254,-1065.66177842,0.0003836,120]
[391827661,1760893668284,-1065.66177842,0.0003836,120]
[391827662,1760893668311,-1065.66177842,0.0003836,120]
[391827663,1760893668338,-1065.66177842,0.0003836,120]
[391827664,1760893668365,-1065.66177842,0.0003836,120]
[391827665,1760893668392,-1065.66177842,0.0003836,120]
[391827666,1760893668417,-1065.66177842,0.0003836,120]
[391827667,1760893668442,-1065.66177842,0.0003836,120]
[391827668,1760893668467,-1065.66177842,0.0003836,120]
[391827669,1760893668493,-1065.66177842,0.0003836,120]
[391827670,1760893668520,-1065.66177842,0.0003836,120]
[391827671,1760893668547,-1065.66177842,0.0003836,120]
[391827672,1760893668573,-1065.66177842,0.0003836,120]
[391827673,1760893668601,-1065.66177842,0.0003836,120]
[391827674,1760893668628,-1065.66,0.0003836,120]
[391827675,1760893668655,-2486.54414965,0.0003836,120]
[391827676,1760893668681,-2486.54414965,0.0003836,120]
[391827677,1760893668707,-2486.54414965,0.0003836,120]
[391827678,1760893668733,-2486.54414965,0.0003836,120]
[391827679,1760893668759,-2486.54414965,0.0003836,120]
[391827680,1760893668785,-2486.54414965,0.0003836,120]
[391827681,1760893668811,-2486.54414965,0.0003836,120]
[391827682,1760893668838,-2486.54414965,0.0003836,120]
[391827683,1760893668865,-2486.54414965,0.0003836,120]
[391827684,1760893668894,-2486.54414965,0.0003836,120]
[391827685,1760893668921,-2486.54414965,0.0003836,120]
[391827686,1760893668948,-2486.54414965,0.0003836,120]
[391827687,1760893668979,-2486.54414965,0.0003836,120]
[391827688,1760893669006,-2486.54414965,0.0003836,120]
[391827689,1760893669035,-887.96625479,0.0003836,120]
[391827690,1760893671457,-214.071706,0.00034091,30]
[391827691,1760893671505,-1598.57789486,0.0003836,120]
[391827692,1760893671535,-2486.54414965,0.0003836,120]
[391827693,1760893671564,-2486.54414965,0.0003836,120]
[391827694,1760893671594,-2486.54414965,0.0003836,120]
[391827695,1760893671625,-2486.54414965,0.0003836,120]
[391827696,1760893671655,-2486.54,0.0003836,120]
[391827697,1760893671687,-23526.96,0.000387,30]
[391827698,1760893671715,-6791.0,0.000387,117]
[391827699,1760893671742,-42841.3618374,0.000388,120]
[391827700,1760893671772,-155.0,0.000394,120]
[391827701,1760893671801,-445.0,0.00039886,90]
[391827702,1760893671830,-150.0,0.000399,60]
[391827703,1760893671859,-153.0,0.00039987,30]
[391827704,1760893671888,-153.0,0.00039987,30]
[391827705,1760893671916,-153.0,0.00039987,30]
[391827706,1760893671944,-153.0,0.00039987,30]
[391827707,1760893671973,-153.0,0.00039987,30]
[391827708,1760893672002,-153.0,0.00039987,30]
[391827709,1760893672035,-153.0,0.00039987,30]
[391827710,1760893672068,-153.0,0.00039987,30]
[391827711,1760893672098,-153.0,0.00039987,30]
[391827712,1760893672127,-153.0,0.00039987,30]
[391827713,1760893672158,-153.0,0.00039987,30]
[391827714,1760893672187,-153.0,0.00039987,30]
[391827715,1760893672215,-153.0,0.00039987,30]
[391827716,1760893672243,-153.0,0.00039987,30]
[391827717,1760893672273,-153.0,0.00039987,30]
[391827718,1760893672301,-153.0,0.00039987,30]
[391827719,1760893672329,-153.0,0.00039987,30]
[391827720,1760893672357,-153.0,0.00039987,30]
[391827721,1760893672385,-153.0,0.00039987,30]
[391827722,1760893672414,-153.0,0.00039987,30]
[391827723,1760893672442,-153.0,0.00039987,30]
[391827724,1760893672470,-153.0,0.00039987,30]
[391827725,1760893672498,-153.0,0.00039987,30]
[391827726,1760893672530,-153.0,0.00039987,30]
[391827727,1760893672559,-153.0,0.00039987,30]
[391827728,1760893672587,-153.0,0.00039987,30]
[391827729,1760893672615,-153.0,0.00039987,30]
[391827730,1760893672641,-153.0,0.00039987,30]
[391827731,1760893672668,-153.0,0.00039987,30]
[391827732,1760893672696,-153.0,0.00039987,30]
[391827733,1760893672724,-153.0,0.00039987,30]
[391827734,1760893672754,-153.0,0.00039987,30]
[391827735,1760893672785,-153.0,0.00039987,30]
[391827736,1760893672813,-153.0,0.00039987,30]
[391827737,1760893672842,-153.0,0.00039987,30]
[391827738,1760893672871,-153.0,0.00039987,30]
[391827739,1760893672898,-153.0,0.00039987,30]
[391827740,1760893672925,-153.0,0.00039987,30]
[391827741,1760893672952,-153.0,0.00039987,30]
[391827742,1760893672982,-153.0,0.00039987,30]
[391827743,1760893673009,-153.0,0.00039987,30]
[391827744,1760893673039,-153.0,0.00039987,30]
[391827745,1760893673069,-153.0,0.00039987,30]
[391827746,1760893673112,-153.0,0.00039987,30]
[391827747,1760893673142,-153.0,0.00039987,30]
[391827748,1760893673172,-153.0,0.00039987,30]
[391827749,1760893673201,-153.0,0.00039987,30]
[391827750,1760893673231,-153.0,0.00039987,30]
[391827751,1760893673265,-153.0,0.00039987,30]
[391827752,1760893673295,-153.0,0.00039987,30]
[391827753,1760893673326,-153.0,0.00039987,30]
[391827754,1760893673355,-153.0,0.00039987,30]
[391827755,1760893673385,-153.0,0.00039987,30]
[391827756,1760893673412,-153.0,0.00039987,30]
[391827757,1760893673439,-153.0,0.00039987,30]
[391827758,1760893673467,-153.0,0.00039995,30]
[391827759,1760893673495,-153.0,0.00039995,30]
[391827760,1760893673526,-153.0,0.00039995,30]
[391827761,1760893673554,-153.0,0.00039995,30]
[391827762,1760893673581,-153.0,0.00039995,30]
[391827763,1760893673608,-153.0,0.00039995,30]
[391827764,1760893673636,-153.0,0.00039995,30]
[391827765,1760893673663,-153.0,0.00039995,30]
[391827766,1760893673692,-153.0,0.00039995,30]
[391827767,1760893673718,-153.0,0.00039995,30]
[391827768,1760893673747,-153.0,0.00039995,30]
[391827769,1760893673961,-153.0,0.00039995,30]
[391827770,1760893674003,-153.0,0.00039995,30]
[391827771,1760893674053,-153.0,0.00039995,30]
[391827772,1760893674090,-153.0,0.00039995,30]
[391827773,1760893674127,-153.0,0.00039995,30]
[391827774,1760893674162,-153.0,0.00039995,30]
[391827775,1760893674196,-153.0,0.00039995,30]
[391827776,1760893674233,-153.0,0.00039995,30]
[391827777,1760893674265,-153.0,0.00039995,30]
[391827778,1760893674301,-153.0,0.00039995,30]
[391827779,1760893674342,-153.0,0.00039995,30]
[391827780,1760893674380,-153.0,0.00039995,30]
[391827781,1760893674415,-153.0,0.00039995,30]
[391827782,1760893674451,-153.0,0.00039995,30]
[391827783,1760893674486,-153.0,0.00039995,30]
[391827784,1760893674533,-153.0,0.00039995,30]
[391827785,1760893674567,-153.0,0.00039995,30]
[391827786,1760893674598,-153.0,0.00039995,30]
[391827787,1760893674628,-153.0,0.00039995,30]
[391827788,1760893674657,-153.0,0.00039995,30]
[391827789,1760893674689,-153.0,0.00039995,30]
[391827790,1760893674720,-153.0,0.00039995,30]
[391827791,1760893674751,-153.0,0.00039995,30]
[391827792,1760893674785,-153.0,0.00039995,30]
[391827793,1760893674813,-184.65343535,0.00039999,31]
[391827794,1760893674842,-499.49616326,0.00039999,31]
[391827795,1760893674873,-500.0,0.00039999,31]
[391827796,1760893674905,-500.0,0.00039999,31]
[391827797,1760893674937,-549.60947291,0.00039999,31]
[391827798,1760893674970,-500.0,0.00039999,31]
[391827799,1760893674998,-500.0,0.00039999,31]
[391827800,1760893675026,-429.43318858,0.00039999,31]
[391827801,1760893675054,-500.0,0.00039999,31]
[391827802,1760893675084,-500.0,0.00039999,31]
[391827803,1760893675113,-500.0,0.00039999,31]
[391827804,1760893675140,-500.0,0.00039999,31]
[391827805,1760893675170,-500.0,0.00039999,31]
[391827806,1760893675200,-500.0,0.00039999,31]
[391827807,1760893675227,-500.0,0.00039999,31]
[391827808,1760893675255,-500.0,0.00039999,31]
[391827809,1760893675304,-602.63900548,0.00039999,31]
[391827810,1760893675335,-500.0,0.00039999,31]
[391827811,1760893675366,-500.0,0.00039999,31]
[391827812,1760893675395,-500.0,0.00039999,31]
[391827813,1760893675425,-500.0,0.00039999,31]
[391827814,1760893675455,-500.0,0.00039999,31]
[391827815,1760893675488,-526.67228499,0.00039999,31]
[391827816,1760893675521,-526.67228499,0.00039999,31]
[391827817,1760893675552,-526.67228499,0.00039999,31]
[391827818,1760893675582,-526.67228499,0.00039999,31]
[391827819,1760893675612,-526.67228499,0.00039999,31]
[391827820,1760893675642,-526.67228499,0.00039999,31]
[391827821,1760893675670,-526.67228499,0.00039999,31]
[391827822,1760893675698,-773.83623708,0.00039999,31]
[391827823,1760893675726,-773.83623708,0.00039999,31]
[391827824,1760893675755,-773.83623708,0.00039999,31]
[391827825,1760893675787,-50000.0,0.0004,40]
[391827826,1760893675815,-1733.0,0.0004,120]
[391827827,1760893675845,-5000.0,0.0004,120]
[391827828,1760893675874,-5000.0,0.0004,120]
[391827829,1760893675904,-157.0,0.000402,120]
[391827830,1760893675933,-23526.96,0.000409,30]
[391827831,1760893675962,-991.396656,0.00041,120]
[391827832,1760893675992,-231.02507039,0.00041,120]
[391827833,1760893676021,-30000.0,0.00041096,120]
[391827834,1760893676053,-656.32,0.00041096,120]
[391827835,1760893676082,-1091.0,0.00041268,30]
[391827836,1760893676112,-500.0,0.00041604,120]
[391827837,1760893676141,-583.0,0.00041604,120]
[391827838,1760893676170,-500.0,0.00041604,120]
[391827839,1760893676199,-500.0,0.00041604,120]
[391827840,1760893676227,-500.0,0.00041604,120]
[391827841,1760893676254,-500.0,0.00041604,120]
[391827842,1760893676283,-500.0,0.00041604,120]
[391827843,1760893676312,-500.0,0.00041604,120]
[391827844,1760893676340,-500.0,0.00041604,120]
[391827845,1760893676368,-500.0,0.00041604,120]
[391827846,1760893676395,-500.0,0.00041604,120]
[391827847,1760893676422,-627.0,0.00041604,120]
[391827848,1760893676450,-542.06124566,0.00041644,30]
[391827849,1760893676478,-1898.0,0.000417,120]
[391827850,1760893676505,-542.06124566,0.00041808,30]
[391827851,1760893676534,-542.06124566,0.00041973,30]
[391827852,1760893676561,-215.86,0.00042,30]
[391827853,1760893676589,-542.06124566,0.00042137,30]
[391827854,1760893676617,-542.06124566,0.00042301,30]
[391827855,1760893676647,-542.06124566,0.00042493,30]
[391827856,1760893676675,-542.06124566,0.00042658,30]
[391827857,1760893676701,-23526.96,0.000428,30]
[391827858,1760893676729,-542.06124566,0.00042822,30]
[391827859,1760893676758,-542.06124566,0.00042986,30]
[391827860,1760893676789,-3000.0,0.00043,120]
[391827861,1760893676980,-22579.43447485,0.00043,120]
[391827862,1760893677011,-978251.46,0.00043,60]
[391827863,1760893677041,-542.06124566,0.00043151,30]
[391827864,1760893677070,-157.0,0.000433,120]
[391827865,1760893677097,-542.06124566,0.00043315,30]
[391827866,1760893677125,-1091.0,0.0004344,30]
[391827867,1760893677155,-542.06124566,0.00043479,30]
[391827868,1760893677182,-155.0,0.000435,120]
[391827869,1760893677209,-964.38992192,0.00043562,120]
[391827870,1760893677234,-771.6462175,0.000436,120]
[391827871,1760893677265,-1022.0,0.00043758,30]
[391827872,1760893677294,-1000.0,0.00043832,120]
[391827873,1760893677325,-1000.0,0.00043832,120]
[391827874,1760893677351,-1000.0,0.00043832,120]
[391827875,1760893677380,-1000.0,0.00043832,120]
[391827876,1760893677406,-1000.0,0.00043832,120]
[391827877,1760893677431,-1000.0,0.00043832,120]
[391827878,1760893677456,-1000.0,0.00043832,120]
[391827879,1760893677483,-1000.0,0.00043832,120]
[391827880,1760893677508,-1000.0,0.00043832,120]
[391827881,1760893677535,-1000.0,0.00043832,120]
[391827882,1760893677562,-1000.0,0.00043832,120]
[391827883,1760893677596,-1000.0,0.00043832,120]
[391827884,1760893677623,-1000.0,0.00043832,120]
[391827885,1760893677652,-1000.0,0.00043832,120]
[391827886,1760893677680,-1000.0,0.00043832,120]
[391827887,1760893677709,-1000.0,0.00043832,120]
[391827888,1760893677736,-1000.0,0.00043832,120]
[391827889,1760893677765,-1000.0,0.00043832,120]
[391827890,1760893677791,-641.04268761,0.00043832,120]
[391827891,1760893677817,-230.31536,0.00043835,120]
[391827892,1760893677843,-21309.48755,0.00043835,120]
[391827893,1760893677870,-1173.841248,0.00043835,120]
[391827894,1760893677897,-1306.069427,0.00043835,120]
[391827895,1760893677923,-179.116536,0.00043835,120]
[391827896,1760893677949,-1613.021271,0.00043835,120]
[391827897,1760893677976,-987.538931,0.00043835,120]
[391827898,1760893678002,-21309.48755,0.00043835,120]
[391827899,1760893678031,-1173.841248,0.00043835,120]
[391827900,1760893678059,-1306.069427,0.00043835,120]
[391827901,1760893678089,-179.116536,0.00043835,120]
[391827902,1760893678120,-20795.298176,0.00043835,120]
[391827903,1760893678154,-1613.021271,0.00043835,120]
[391827904,1760893678183,-21309.48755,0.00043835,120]
[391827905,1760893678212,-1306.069427,0.00043835,120]
[391827906,1760893678239,-179.116536,0.00043835,120]
[391827907,1760893678269,-20795.298176,0.00043835,120]
[391827908,1760893678296,-1613.021271,0.00043835,120]
[391827909,1760893678323,-267.078871,0.00043835,120]
[391827910,1760893678349,-267.078871,0.00043835,120]
[391827911,1760893678375,-42618.9751,0.00043835,120]
[391827912,1760893678401,-20795.298176,0.00043835,120]
[391827913,1760893678429,-267.078871,0.00043835,120]
[391827914,1760893678455,-42618.9751,0.00043835,120]
[391827915,1760893678483,-42618.9751,0.00043835,120]
[391827916,1760893678510,-10391.312869,0.00043835,120]
[391827917,1760893678539,-10391.312869,0.00043835,120]
[391827918,1760893678565,-10391.312869,0.00043835,120]
[391827919,1760893678592,-501.79394249,0.00043835,120]
[391827920,1760893678617,-500.0,0.00043835,120]
[391827921,1760893678642,-500.27891344,0.00043835,120]
[391827922,1760893678668,-500.0,0.00043835,120]
[391827923,1760893678694,-305.35635417,0.00043835,120]
[391827924,1760893678718,-153.89823382,0.00043835,120]
[391827925,1760893678744,-334.83209101,0.00043835,120]
[391827926,1760893678769,-500.0,0.00043835,120]
[391827927,1760893678795,-500.0,0.00043835,120]
[391827928,1760893678823,-500.0,0.00043835,120]
[391827929,1760893678848,-501.45613145,0.00043835,120]
[391827930,1760893678875,-500.0,0.00043835,120]
[391827931,1760893678901,-500.0,0.00043835,120]
[391827932,1760893678928,-502.3555666,0.00043835,120]
[391827933,1760893678955,-503.75461522,0.00043835,120]
[391827934,1760893678985,-500.0,0.00043835,120]
[391827935,1760893679014,-219.08568238,0.00043835,120]
[391827936,1760893679042,-500.0,0.00043835,120]
[391827937,1760893679068,-500.0,0.00043835,120]
[391827938,1760893679097,-500.0,0.00043835,120]
[391827939,1760893679125,-500.0,0.00043835,120]
[391827940,1760893679153,-500.0,0.00043835,120]
[391827941,1760893679180,-594.68453325,0.00043835,120]
[391827942,1760893679208,-500.0,0.00043835,120]
[391827943,1760893679236,-500.0,0.00043835,120]
[391827944,1760893679264,-213.98203197,0.00043835,120]
[391827945,1760893679291,-500.0,0.00043835,120]
[391827946,1760893679320,-510.81995453,0.00043835,120]
[391827947,1760893679345,-501.16278758,0.00043835,120]
[391827948,1760893679372,-500.0,0.00043835,120]
[391827949,1760893679398,-500.0,0.00043835,120]
[391827950,1760893679425,-500.0,0.00043835,120]
[391827951,1760893679451,-503.30196113,0.00043835,120]
[391827952,1760893679477,-500.0,0.00043835,120]
[391827953,1760893679503,-500.0,0.00043835,120]
[391827954,1760893679532,-500.0,0.00043835,120]
[391827955,1760893679558,-500.0,0.00043835,120]
[391827956,1760893679713,-500.0,0.00043835,120]
[391827957,1760893679740,-500.0,0.00043835,120]
[391827958,1760893679770,-500.0,0.00043835,120]
[391827959,1760893679796,-500.0,0.00043835,120]
[391827960,1760893679823,-201.39176232,0.00043835,120]
[391827961,1760893679848,-500.0,0.00043835,120]
[391827962,1760893679875,-503.36751892,0.00043835,120]
[391827963,1760893679902,-500.0,0.00043835,120]
[391827964,1760893679929,-500.0,0.00043835,120]
[391827965,1760893679957,-500.0,0.00043835,120]
[391827966,1760893679985,-500.0,0.00043835,120]
[391827967,1760893680014,-504.16472017,0.00043835,120]
[391827968,1760893680048,-500.0,0.00043835,120]
[391827969,1760893680077,-500.0,0.00043835,120]
[391827970,1760893680106,-500.0,0.00043835,120]
[391827971,1760893680136,-500.0,0.00043835,120]
[391827972,1760893680166,-500.0,0.00043835,120]
[391827973,1760893680194,-205.9443938,0.00043835,120]
[391827974,1760893680222,-500.0,0.00043835,120]
[391827975,1760893680252,-552.56531753,0.00043835,120]
[391827976,1760893680280,-507.17056662,0.00043835,120]
[391827977,1760893680308,-500.0,0.00043835,120]
[391827978,1760893680336,-343.91286894,0.00043835,120]
[391827979,1760893680362,-500.0,0.00043835,120]
[391827980,1760893680388,-500.0,0.00043835,120]
[391827981,1760893680415,-500.0,0.00043835,120]
[391827982,1760893680441,-274.38367846,0.00043835,120]
[391827983,1760893680468,-506.99431632,0.00043835,120]
[391827984,1760893680495,-500.0,0.00043835,120]
[391827985,1760893680522,-500.0,0.00043835,120]
[391827986,1760893680548,-500.0,0.00043835,120]
[391827987,1760893680575,-641.07777886,0.00043835,120]
[391827988,1760893680601,-500.0,0.00043835,120]
[391827989,1760893680627,-355.65481534,0.00043835,120]
[391827990,1760893680652,-500.0,0.00043835,120]
[391827991,1760893680677,-500.0,0.00043835,120]
[391827992,1760893680703,-500.0,0.00043835,120]
[391827993,1760893680728,-500.0,0.00043835,120]
[391827994,1760893680754,-500.0,0.00043835,120]
[391827995,1760893680783,-504.72581406,0.00043835,120]
[391827996,1760893680808,-296.93911645,0.00043835,120]
[391827997,1760893680835,-500.0,0.00043835,120]
[391827998,1760893680861,-500.0,0.00043835,120]
[391827999,1760893680888,-500.0,0.00043835,120]
[391828000,1760893680915,-500.0,0.00043835,120]
[391828001,1760893680943,-500.0,0.00043835,120]
[391828002,1760893680972,-500.0,0.00043835,120]
[391828003,1760893680997,-500.0,0.00043835,120]
[391828004,1760893681026,-500.0,0.00043835,120]
[391828005,1760893681053,-500.0,0.00043835,120]
[391828006,1760893681080,-500.0,0.00043835,120]
[391828007,1760893681111,-500.0,0.00043835,120]
[391828008,1760893681140,-372.76518488,0.00043835,120]
[391828009,1760893681166,-608.88504029,0.00043835,120]
[391828010,1760893681194,-500.0,0.00043835,120]
[391828011,1760893681221,-500.0,0.00043835,120]
[391828012,1760893681248,-500.0,0.00043835,120]
[391828013,1760893681275,-500.0,0.00043835,120]
[391828014,1760893681301,-500.0,0.00043835,120]
[391828015,1760893681326,-500.0,0.00043835,90]
[391828016,1760893681352,-500.0,0.00043835,120]
[391828017,1760893681378,-500.0,0.00043835,90]
[391828018,1760893681403,-500.0,0.00043835,120]
[391828019,1760893681428,-500.0,0.00043835,90]
[391828020,1760893681454,-500.0,0.00043835,120]
[391828021,1760893681480,-500.0,0.00043835,90]
[391828022,1760893681507,-500.0,0.00043835,120]
[391828023,1760893681536,-500.0,0.00043835,90]
[391828024,1760893681563,-500.0,0.00043835,120]
[391828025,1760893681590,-500.0,0.00043835,90]
[391828026,1760893681617,-500.0,0.00043835,120]
[391828027,1760893681643,-500.0,0.00043835,90]
[391828028,1760893681671,-500.0,0.00043835,120]
[391828029,1760893681698,-500.0,0.00043835,90]
[391828030,1760893681727,-500.0,0.00043835,120]
[391828031,1760893681756,-587.78356531,0.00043835,90]
[391828032,1760893681785,-508.56067647,0.00043835,120]
[391828033,1760893681812,-500.0,0.00043835,120]
[391828034,1760893681839,-500.0,0.00043835,120]
[391828035,1760893681865,-185.77682454,0.00043835,120]
[391828036,1760893681894,-500.0,0.00043835,120]
[391828037,1760893681924,-500.0,0.00043835,120]
[391828038,1760893681956,-500.0,0.00043835,120]
[391828039,1760893681986,-635.1486627,0.00043835,120]
[391828040,1760893682019,-500.0,0.00043835,120]
[391828041,1760893682047,-510.41691305,0.00043835,120]
[391828042,1760893682076,-500.0,0.00043835,120]
[391828043,1760893682107,-207.99416182,0.00043835,120]
[391828044,1760893682136,-500.0,0.00043835,120]
[391828045,1760893682166,-500.0,0.00043835,120]
[391828046,1760893682194,-510.48510122,0.00043835,120]
[391828047,1760893682223,-176.72012276,0.00043835,120]
[391828048,1760893682251,-270.81329954,0.00043835,120]
[391828049,1760893682281,-500.0,0.00043835,120]
[391828050,1760893682310,-547.36712978,0.00043835,120]
[391828051,1760893682476,-441.69806135,0.00043835,120]
[391828052,1760893682503,-500.0,0.00043835,120]
[391828053,1760893682533,-452.20767709,0.00043835,120]
[391828054,1760893682560,-503.28142806,0.00043835,120]
[391828055,1760893682586,-500.0,0.00043835,120]
[391828056,1760893682612,-500.0,0.00043835,120]
[391828057,1760893682637,-500.0,0.00043835,120]
[391828058,1760893682664,-512.15599147,0.00043835,120]
[391828059,1760893682690,-500.0,0.00043835,120]
[391828060,1760893682714,-611.28688472,0.00043835,120]
[391828061,1760893682742,-500.0,0.00043835,120]
[391828062,1760893682771,-511.1252141,0.00043835,120]
[391828063,1760893682797,-500.0,0.00043835,120]
[391828064,1760893682822,-500.0,0.00043835,120]
[391828065,1760893682849,-500.0,0.00043835,120]
[391828066,1760893682875,-500.0,0.00043835,120]
[391828067,1760893682904,-500.0,0.00043835,120]
[391828068,1760893682930,-500.0,0.00043835,120]
[391828069,1760893682957,-500.0,0.00043835,120]
[391828070,1760893682988,-500.0,0.00043835,120]
[391828071,1760893683022,-500.0,0.00043835,120]
[391828072,1760893683050,-500.0,0.00043835,120]
[391828073,1760893683079,-500.0,0.00043835,120]
[391828074,1760893683107,-500.0,0.00043835,120]
[391828075,1760893683137,-313.85030318,0.00043835,120]
[391828076,1760893683166,-500.0,0.00043835,120]
[391828077,1760893683194,-500.0,0.00043835,120]
[391828078,1760893683232,-369.39300072,0.00043835,120]
[391828079,1760893683262,-520.66496826,0.00043835,120]
[391828080,1760893683295,-496.23009407,0.00043835,120]
[391828081,1760893683323,-503.84219494,0.00043835,120]
[391828082,1760893683349,-462.24756252,0.00043835,120]
[391828083,1760893683376,-419.22474491,0.00043835,120]
[391828084,1760893683401,-420.30748803,0.00043835,120]
[391828085,1760893683426,-500.0,0.00043835,120]
[391828086,1760893683452,-500.0,0.00043835,120]
[391828087,1760893683477,-211.77872656,0.00043835,120]
[391828088,1760893683504,-436.27117067,0.00043835,120]